[Event "78th GEO-ch Women 1st League 2021"]
[Site "Tbilisi"]
[Date "2021.03.19"]
[Round "2.6"]
[White "Kirtadze, Anastasia"]
[Black "Esadze, Tamari"]
[Result "0-1"]
[ECO "A13"]
[WhiteElo "1810"]
[BlackElo "1889"]
[Annotator "NA"]
[PlyCount "92"]
[EventDate "2021.03.18"]
[EventType "swiss"]
[EventCountry "GEO"]
[SourceTitle "playchess.com"]
[Source "ChessBase"]
[SourceQuality "1"]
[TimeControl "5400+30"]

1. Nf3 {[%emt 0:00:00]} Nf6 {[%emt 0:00:00]} 2. c4 {[%emt 0:00:11]} e6 {[%emt 0:00:00]} 3. e3 {[%emt 0:02:38]} d5 {[%emt 0:00:29]} 4. b3 {[%emt 0:00:52]} Be7 {[%emt 0:00:46]} 5. Bb2 {[%emt 0:00:56]} O-O {[%emt 0:00:11]} 6. Be2 {[%emt 0:00:38]} c5 {[%emt 0:02:23]} 7. O-O {[%emt 0:01:22]} Nc6 {[%emt 0:00:21]} 8. cxd5 {[%emt 0:01:39]} exd5 {[%emt 0:02:51]} 9. d4 {[%emt 0:02:23]} Be6 {[%emt 0:03:02]} 10. Nc3 {[%emt 0:02:08]} Rc8 {[%emt 0:01:10]} 11. dxc5 {[%emt 0:01:02]} Bxc5 {[%emt 0:00:49]} 12. Nb5 {[%emt 0:00:42]} a6 {[%emt 0:03:05]} 13. Nbd4 {[%emt 0:00:17]} Nxd4 {[%emt 0:01:32]} 14. Nxd4 {[%emt 0:02:35]} Qe7 {[%emt 0:01:39]} 15. Bf3 {[%emt 0:03:54]} Ne4 {[%emt 0:09:39]} 16. Qd3 {[%emt 0:05:28]} Bd7 {[%emt 0:07:09]} 17. Rfd1 {[%emt 0:04:28]} Bd6 {[%emt 0:05:29]} 18. g3 {[%emt 0:03:53]} Rfd8 {[%emt 0:09:44]} 19. Qf1 {[%emt 0:07:13]} Be5 {[%emt 0:03:58]} 20. Qg2 {[%emt 0:01:58]} Bf6 {[%emt 0:06:29]} 21. Rab1 {[%emt 0:05:24]} h6 {[%emt 0:01:58]} 22. Ba1 {[%emt 0:03:07]} Ng5 {[%emt 0:07:06]} 23. Rbc1 {[%emt 0:13:04]} Bh3 {[%emt 0:02:49]} 24. Qh1 {[%emt 0:02:24]} Qa3 {[%emt 0:01:11]} 25. Rb1 {[%emt 0:03:17]} Bxd4 {[%emt 0:04:20]} 26. Bxd4 {[%emt 0:01:27]} Rc2 {[%emt 0:01:25]} 27. e4 {[%emt 0:02:37]} Qxa2 {[%emt 0:02:20]} 28. exd5 {[%emt 0:00:41]} Rdc8 {[%emt 0:00:07]} 29. Be3 {[%emt 0:00:50]} R8c3 {[%emt 0:03:33]} 30. Ra1 {[%emt 0:04:10]} Qxb3 {[%emt 0:01:53]} 31. Re1 {[%emt 0:01:42]} Ra2 {[%emt 0:04:28]} 32. Rxa2 {[%emt 0:04:14]} Qxa2 {[%emt 0:00:03]} 33. Bxg5 {[%emt 0:01:33]} hxg5 {[%emt 0:00:58]} 34. Bg2 {[%emt 0:02:03]} Bd7 {[%emt 0:01:09]} 35. Bf1 {[%emt 0:04:07]} Qd2 {[%emt 0:07:18]} 36. Re7 {[%emt 0:04:53]} Bf5 {[%emt 0:01:35]} 37. g4 {[%emt 0:01:12]} Bg6 {[%emt 0:03:18]} 38. Qg2 {[%emt 0:00:21]} Qf4 {[%emt 0:01:26]} 39. Re8+ {[%emt 0:02:00]} Kh7 {[%emt 0:00:02]} 40. Re1 {[%emt 0:00:20]} b5 {[%emt 0:01:03]} 41. Re8 {[%emt 0:02:17]} f5 {[%emt 0:00:21]} 42. Rd8 {[%emt 0:00:45]} fxg4 {[%emt 0:00:10]} 43. f3 {[%emt 0:01:15]} Rxf3 {[%emt 0:00:39]} 44. d6 {[%emt 0:00:45]} Qe3+ {[%emt 0:00:14]} 45. Kh1 {[%emt 0:00:08]} Rxf1+ {[%emt 0:00:10]} 46. Qxf1 {[%emt 0:00:06]} Be4+ {[%emt 0:00:02]} 0-1

[Event "78th GEO-ch Women 1st League 2021"]
[Site "Tbilisi"]
[Date "2021.03.19"]
[Round "2.7"]
[White "Mgeladze, Kesaria"]
[Black "Bedoshvili, Dea"]
[Result "0-1"]
[ECO "B06"]
[WhiteElo "1380"]
[BlackElo "1667"]
[Annotator "NA"]
[PlyCount "114"]
[EventDate "2021.03.18"]
[EventType "swiss"]
[EventCountry "GEO"]
[SourceTitle "playchess.com"]
[Source "ChessBase"]
[SourceQuality "1"]
[TimeControl "5400+30"]

1. e4 {[%emt 0:00:00]} g6 {[%emt 0:00:00]} 2. d4 {[%emt 0:00:07]} Bg7 {[%emt 0:00:00]} 3. Nc3 {[%emt 0:00:32]} d6 {[%emt 0:00:00]} 4. f4 {[%emt 0:00:12]} Nd7 {[%emt 0:00:22]} 5. Nf3 {[%emt 0:01:27]} a6 {[%emt 0:00:36]} 6. Bc4 {[%emt 0:00:29]} Nh6 {[%emt 0:00:51]} 7. Be3 {[%emt 0:01:08]} b5 {[%emt 0:00:10]} 8. Bb3 {[%emt 0:00:33]} Bb7 {[%emt 0:01:43]} 9. h3 {[%emt 0:02:37]} b4 {[%emt 0:06:59]} 10. Nd5 {[%emt 0:04:14]} e6 {[%emt 0:28:11]} 11. Nxb4 {[%emt 0:00:56]} a5 {[%emt 0:00:52]} 12. Nd3 {[%emt 0:01:19]} a4 {[%emt 0:00:11]} 13. Bc4 {[%emt 0:08:49]} d5 {[%emt 0:00:28]} 14. exd5 {[%emt 0:00:27]} exd5 {[%emt 0:00:03]} 15. Bb5 {[%emt 0:05:41]} c6 {[%emt 0:00:04]} 16. Bxc6 {[%emt 0:01:36]} Bxc6 {[%emt 0:00:03]} 17. g4 {[%emt 0:00:28]} O-O {[%emt 0:01:19]} 18. Qd2 {[%emt 0:00:33]} f5 {[%emt 0:02:23]} 19. Nfe5 {[%emt 0:02:17]} Bb5 {[%emt 0:05:20]} 20. g5 {[%emt 0:01:03]} Nf7 {[%emt 0:00:34]} 21. h4 {[%emt 0:00:30]} Nfxe5 {[%emt 0:03:10]} 22. Nxe5 {[%emt 0:00:17]} Nxe5 {[%emt 0:07:47]} 23. fxe5 {[%emt 0:01:36]} Qa5 {[%emt 0:04:06]} 24. c3 {[%emt 0:00:26]} Ba6 {[%emt 0:07:18]} 25. h5 {[%emt 0:02:14]} Qb6 {[%emt 0:00:50]} 26. Bf4 {[%emt 0:01:29]} Rfb8 {[%emt 0:05:35]} 27. Rb1 {[%emt 0:05:36]} Bc4 {[%emt 0:00:21]} 28. hxg6 {[%emt 0:02:16]} hxg6 {[%emt 0:00:41]} 29. Qh2 {[%emt 0:03:38]} Bxa2 {[%emt 0:00:31]} 30. Rc1 {[%emt 0:00:27]} Kf7 {[%emt 0:00:34]} 31. Rc2 {[%emt 0:01:04]} Rh8 {[%emt 0:10:11]} 32. Qg2 {[%emt 0:01:22]} Rxh1+ {[%emt 0:03:02]} 33. Qxh1 {[%emt 0:00:06]} a3 {[%emt 0:00:05]} 34. bxa3 {[%emt 0:02:37]} Qb1+ {[%emt 0:01:11]} 35. Rc1 {[%emt 0:00:11]} Qe4+ {[%emt 0:00:46]} 36. Qxe4 {[%emt 0:00:08]} fxe4 {[%emt 0:00:02]} 37. Rc2 {[%emt 0:00:46]} Rxa3 {[%emt 0:00:43]} 38. Rb2 {[%emt 0:00:12]} Bf8 {[%emt 0:02:31]} 39. Kd2 {[%emt 0:00:42]} Ra6 {[%emt 0:01:10]} 40. Rb8 {[%emt 0:01:45]} Be7 {[%emt 0:01:04]} 41. Rb7 {[%emt 0:01:23]} Ke6 {[%emt 0:00:15]} 42. Ke3 {[%emt 0:00:25]} Rc6 {[%emt 0:00:36]} 43. Kd2 {[%emt 0:00:06]} Kf5 {[%emt 0:01:29]} 44. Rxe7 {[%emt 0:00:52]} Kxf4 {[%emt 0:00:03]} 45. Rf7+ {[%emt 0:00:31]} Kxg5 {[%emt 0:00:05]} 46. Rf8 {[%emt 0:00:13]} Kh6 {[%emt 0:01:23]} 47. Ke3 {[%emt 0:02:03]} Rxc3+ {[%emt 0:07:52]} 48. Kf2 {[%emt 0:00:00]} Rf3+ 49. Rxf3 {[%emt 0:00:09]} exf3 {[%emt 0:00:00]} 50. Kxf3 {[%emt 0:47:28]} Kg5 51. Kg3 {[%emt 0:00:00]} Kf5 {[%emt 0:02:00]} 52. Kf3 {[%emt 0:00:00]} Bc4 {[%emt 0:00:00]} 53. Ke3 {[%emt 0:00:00]} Bb5 {[%emt 0:00:00]} 54. Kf3 {[%emt 0:00:00]} Bd7 {[%emt 0:00:00]} 55. Ke3 {[%emt 0:00:00]} g5 {[%emt 0:00:00]} 56. Kf3 {[%emt 0:00:00]} g4+ {[%emt 0:00:00]} 57. Kg3 {[%emt 0:00:00]} Ke4 {[%emt 0:00:00]} 0-1

[Event "78th GEO-ch Women 1st League 2021"]
[Site "Tbilisi"]
[Date "2021.03.19"]
[Round "2.8"]
[White "Pipia, Ekaterine"]
[Black "Gvatua, Mariam"]
[Result "1-0"]
[ECO "E11"]
[WhiteElo "2019"]
[BlackElo "1343"]
[Annotator "NA"]
[PlyCount "65"]
[EventDate "2021.03.18"]
[EventType "swiss"]
[EventCountry "GEO"]
[SourceTitle "playchess.com"]
[Source "ChessBase"]
[SourceQuality "1"]
[TimeControl "5400+30"]

1. d4 {[%emt 0:06:25]} Nf6 {[%emt 0:00:00]} 2. c4 {[%emt 0:00:16]} e6 {[%emt 0:00:00]} 3. Nf3 {[%emt 0:00:05]} Bb4+ {[%emt 0:00:00]} 4. Bd2 {[%emt 0:00:04]} Qe7 {[%emt 0:00:00]} 5. Nc3 {[%emt 0:00:20]} Bxc3 {[%emt 0:00:35]} 6. Bxc3 {[%emt 0:00:02]} d5 {[%emt 0:00:07]} 7. e3 {[%emt 0:00:44]} O-O {[%emt 0:00:34]} 8. Rc1 {[%emt 0:01:37]} b6 {[%emt 0:00:35]} 9. b3 {[%emt 0:01:57]} Bb7 {[%emt 0:00:11]} 10. Bd3 {[%emt 0:01:07]} Nbd7 {[%emt 0:01:00]} 11. O-O {[%emt 0:00:47]} dxc4 {[%emt 0:01:43]} 12. bxc4 {[%emt 0:00:32]} Ne4 {[%emt 0:00:06]} 13. Bb2 {[%emt 0:01:04]} Ndf6 {[%emt 0:00:56]} 14. c5 {[%emt 0:06:56]} bxc5 {[%emt 0:02:39]} 15. Ba3 {[%emt 0:01:38]} Rfd8 {[%emt 0:00:18]} 16. Ne5 {[%emt 0:09:44]} Nd7 {[%emt 0:01:18]} 17. Nxd7 {[%emt 0:03:16]} Qxd7 {[%emt 0:00:24]} 18. Bxc5 {[%emt 0:00:53]} Nxc5 {[%emt 0:01:16]} 19. Rxc5 {[%emt 0:00:15]} Bd5 {[%emt 0:00:27]} 20. Qc2 {[%emt 0:00:42]} c6 {[%emt 0:04:00]} 21. Bxh7+ {[%emt 0:02:12]} Kh8 {[%emt 0:00:22]} 22. Bd3 {[%emt 0:01:40]} Qd6 {[%emt 0:02:51]} 23. e4 {[%emt 0:00:49]} Bxa2 {[%emt 0:00:24]} 24. Qxa2 {[%emt 0:00:23]} Qxd4 {[%emt 0:00:20]} 25. Rh5+ {[%emt 0:00:06]} Kg8 {[%emt 0:00:09]} 26. Rh3 {[%emt 0:01:08]} a5 {[%emt 0:00:27]} 27. Qa3 {[%emt 0:00:43]} a4 {[%emt 0:00:25]} 28. e5 {[%emt 0:01:58]} g6 {[%emt 0:00:24]} 29. Re1 {[%emt 0:01:11]} c5 {[%emt 0:00:49]} 30. Qc1 {[%emt 0:01:29]} Kf8 {[%emt 0:01:58]} 31. Qg5 {[%emt 0:00:42]} Ke8 {[%emt 0:00:34]} 32. Bb5+ {[%emt 0:00:08]} Rd7 {[%emt 0:00:24]} 33. Rh8# {[%emt 0:00:06]} 1-0

[Event "78th GEO-ch Women 1st League 2021"]
[Site "Tbilisi"]
[Date "2021.03.19"]
[Round "2.9"]
[White "Javakhishvili, Mariam"]
[Black "Tasoshvili, Tamar"]
[Result "1-0"]
[ECO "A42"]
[WhiteElo "1671"]
[BlackElo "1528"]
[Annotator "NA"]
[PlyCount "71"]
[EventDate "2021.03.18"]
[EventType "swiss"]
[EventCountry "GEO"]
[SourceTitle "playchess.com"]
[Source "ChessBase"]
[SourceQuality "1"]
[TimeControl "5400+30"]

1. d4 {[%emt 0:00:00]} g6 {[%emt 0:00:00]} 2. c4 {[%emt 0:00:00]} Bg7 {[%emt 0:00:00]} 3. Nc3 {[%emt 0:00:00]} d6 {[%emt 0:00:00]} 4. e4 {[%emt 0:00:00]} c6 {[%emt 0:00:00]} 5. f4 {[%emt 0:02:31]} Nd7 {[%emt 0:00:08]} 6. Nf3 {[%emt 0:00:07]} e5 {[%emt 0:02:06]} 7. Be2 {[%emt 0:03:08]} Ne7 {[%emt 0:00:21]} 8. O-O {[%emt 0:00:49]} exd4 {[%emt 0:00:55]} 9. Nxd4 {[%emt 0:00:02]} Qb6 {[%emt 0:03:15]} 10. Be3 {[%emt 0:00:02]} Qxb2 {[%emt 0:03:38]} 11. Rc1 {[%emt 0:24:13]} Qb4 {[%emt 0:06:11]} 12. Qd2 {[%emt 0:18:54]} O-O {[%emt 0:08:49]} 13. Rfd1 {[%emt 0:04:56]} Nf6 {[%emt 0:05:15]} 14. Rb1 {[%emt 0:02:14]} Qa5 {[%emt 0:02:42]} 15. Nd5 {[%emt 0:00:43]} Qd8 {[%emt 0:00:18]} 16. Nxf6+ {[%emt 0:00:09]} Bxf6 {[%emt 0:00:06]} 17. Nf3 {[%emt 0:00:07]} Bg7 {[%emt 0:03:23]} 18. Qxd6 {[%emt 0:00:58]} Qxd6 {[%emt 0:00:18]} 19. Rxd6 {[%emt 0:00:06]} b6 {[%emt 0:01:52]} 20. c5 {[%emt 0:00:27]} b5 {[%emt 0:01:13]} 21. Nd4 {[%emt 0:00:52]} Bxd4 {[%emt 0:00:38]} 22. Bxd4 {[%emt 0:00:09]} Re8 {[%emt 0:01:23]} 23. Bf3 {[%emt 0:01:53]} Be6 {[%emt 0:01:11]} 24. a3 {[%emt 0:06:09]} Kf8 {[%emt 0:02:31]} 25. Bf6 {[%emt 0:02:39]} Rac8 {[%emt 0:01:34]} 26. g4 {[%emt 0:01:23]} Ng8 {[%emt 0:04:24]} 27. g5 {[%emt 0:04:43]} Nxf6 {[%emt 0:02:00]} 28. gxf6 {[%emt 0:00:02]} Red8 {[%emt 0:02:59]} 29. Rbd1 {[%emt 0:00:03]} Ke8 {[%emt 0:01:49]} 30. e5 {[%emt 0:00:16]} Bd7 {[%emt 0:00:58]} 31. Rxd7 {[%emt 0:00:48]} Rxd7 {[%emt 0:00:13]} 32. Rxd7 {[%emt 0:00:06]} Kxd7 {[%emt 0:00:29]} 33. Bg4+ {[%emt 0:00:05]} Kc7 {[%emt 0:00:04]} 34. Bxc8 {[%emt 0:00:05]} Kxc8 {[%emt 0:00:01]} 35. e6 {[%emt 0:00:08]} fxe6 {[%emt 0:00:13]} 36. f7 {[%emt 0:00:06]} 1-0

[Event "78th GEO-ch Women 1st League 2021"]
[Site "Tbilisi"]
[Date "2021.03.19"]
[Round "2.10"]
[White "Oniani, Tamar"]
[Black "Mamardashvili, Ana"]
[Result "0-1"]
[ECO "D87"]
[WhiteElo "1604"]
[BlackElo "1416"]
[Annotator "NA"]
[PlyCount "142"]
[EventDate "2021.03.18"]
[EventType "swiss"]
[EventCountry "GEO"]
[SourceTitle "playchess.com"]
[Source "ChessBase"]
[SourceQuality "1"]
[TimeControl "5400+30"]

1. d4 {[%emt 0:00:00]} Nf6 {[%emt 0:00:00]} 2. c4 {[%emt 0:00:00]} g6 {[%emt 0:00:00]} 3. Nc3 {[%emt 0:00:00]} d5 {[%emt 0:00:03]} 4. cxd5 {[%emt 0:00:00]} Nxd5 {[%emt 0:00:06]} 5. e4 {[%emt 0:00:00]} Nxc3 {[%emt 0:00:13]} 6. bxc3 {[%emt 0:00:00]} Bg7 {[%emt 0:00:11]} 7. Bc4 {[%emt 0:00:00]} c5 {[%emt 0:01:13]} 8. Ne2 {[%emt 0:00:00]} O-O {[%emt 0:00:35]} 9. O-O {[%emt 0:01:38]} Nc6 {[%emt 0:07:08]} 10. Be3 {[%emt 0:00:47]} Na5 {[%emt 0:08:18]} 11. Bd3 {[%emt 0:00:18]} c4 {[%emt 0:01:34]} 12. Bc2 {[%emt 0:00:07]} b5 {[%emt 0:03:42]} 13. Rb1 {[%emt 0:02:36]} a6 {[%emt 0:03:50]} 14. f4 {[%emt 0:03:40]} f5 {[%emt 0:13:35]} 15. exf5 {[%emt 0:05:47]} gxf5 {[%emt 0:03:24]} 16. Ng3 {[%emt 0:00:46]} Qd5 {[%emt 0:04:05]} 17. Qd2 {[%emt 0:28:29]} Rb8 {[%emt 0:11:59]} 18. Bd1 {[%emt 0:02:16]} Nb7 {[%emt 0:07:02]} 19. Bf3 {[%emt 0:04:21]} Qd6 {[%emt 0:00:23]} 20. a4 {[%emt 0:06:39]} Na5 {[%emt 0:02:11]} 21. axb5 {[%emt 0:04:09]} axb5 {[%emt 0:00:20]} 22. Qf2 {[%emt 0:11:05]} Nb3 {[%emt 0:02:58]} 23. Bd1 {[%emt 0:01:44]} Be6 {[%emt 0:04:12]} 24. Nh5 {[%emt 0:00:18]} Bd5 {[%emt 0:02:28]} 25. Qg3 {[%emt 0:10:07]} Qh6 {[%emt 0:06:53]} 26. Nxg7 {[%emt 0:09:58]} Qxg7 {[%emt 0:00:05]} 27. Bf3 {[%emt 0:00:02]} e6 {[%emt 0:03:23]} 28. Bxd5 {[%emt 0:01:09]} exd5 {[%emt 0:00:03]} 29. Qf3 {[%emt 0:00:03]} Rbd8 {[%emt 0:03:16]} 30. Qd1 {[%emt 0:04:40]} Kh8 {[%emt 0:01:48]} 31. Rf3 {[%emt 0:00:46]} Rg8 {[%emt 0:01:10]} 32. Rg3 {[%emt 0:00:22]} Qe7 {[%emt 0:00:07]} 33. Rxg8+ {[%emt 0:03:46]} Rxg8 {[%emt 0:00:04]} 34. Qf3 {[%emt 0:00:05]} Qf7 {[%emt 0:02:13]} 35. Bc1 {[%emt 0:00:43]} Re8 {[%emt 0:00:37]} 36. Be3 {[%emt 0:00:58]} Ra8 {[%emt 0:01:54]} 37. Re1 {[%emt 0:00:33]} Rb8 {[%emt 0:01:48]} 38. Bf2 {[%emt 0:00:32]} Nd2 {[%emt 0:00:29]} 39. Qe3 {[%emt 0:00:32]} Ne4 {[%emt 0:00:24]} 40. Rb1 {[%emt 0:00:07]} Qd7 {[%emt 0:00:39]} 41. Be1 {[%emt 0:00:37]} Qa7 {[%emt 0:00:58]} 42. g3 {[%emt 0:00:43]} Qa4 {[%emt 0:02:03]} 43. Rb4 {[%emt 0:00:21]} Qa1 {[%emt 0:00:59]} 44. Kg2 {[%emt 0:00:13]} Qd1 {[%emt 0:01:14]} 45. Rb2 {[%emt 0:00:47]} Qa1 {[%emt 0:00:57]} 46. Rb4 {[%emt 0:00:05]} Re8 {[%emt 0:01:21]} 47. Rxb5 {[%emt 0:00:36]} Nd6 {[%emt 0:00:04]} 48. Rb8 {[%emt 0:00:37]} Rxb8 {[%emt 0:00:39]} 49. Qe5+ {[%emt 0:00:01]} Kg8 {[%emt 0:00:04]} 50. Qxd6 {[%emt 0:00:11]} Rb2+ {[%emt 0:00:51]} 51. Bf2 {[%emt 0:00:07]} Qe1 {[%emt 0:01:25]} 52. Qxd5+ {[%emt 0:00:19]} Kg7 {[%emt 0:00:07]} 53. Qd7+ {[%emt 0:00:52]} Kf6 {[%emt 0:00:20]} 54. Qc6+ {[%emt 0:00:20]} Qe6 {[%emt 0:00:10]} 55. Qf3 {[%emt 0:00:33]} Qe4 {[%emt 0:00:56]} 56. Qxe4 {[%emt 0:01:23]} fxe4 {[%emt 0:00:01]} 57. Kf1 {[%emt 0:00:54]} Rc2 {[%emt 0:00:08]} 58. d5 {[%emt 0:00:12]} Ke7 {[%emt 0:00:18]} 59. Bc5+ {[%emt 0:00:54]} Kd7 {[%emt 0:00:19]} 60. Bd4 {[%emt 0:00:13]} Rxh2 {[%emt 0:00:21]} 61. Bf2 {[%emt 0:00:13]} Rh5 {[%emt 0:00:09]} 62. Ke2 {[%emt 0:00:11]} Kd6 {[%emt 0:00:29]} 63. Bd4 {[%emt 0:01:23]} Kxd5 {[%emt 0:00:14]} 64. Kf2 {[%emt 0:00:08]} Rh2+ {[%emt 0:00:55]} 65. Ke1 {[%emt 0:00:59]} Rh1+ {[%emt 0:00:39]} 66. Kf2 {[%emt 0:00:12]} Rd1 {[%emt 0:01:10]} 67. Be5 {[%emt 0:00:33]} h5 {[%emt 0:00:15]} 68. Bf6 {[%emt 0:00:17]} Ke6 {[%emt 0:00:16]} 69. Be5 {[%emt 0:00:04]} Kf5 {[%emt 0:00:11]} 70. Ke2 {[%emt 0:00:56]} Rd3 {[%emt 0:00:09]} 71. Kf2 {[%emt 0:00:51]} Kg4 {[%emt 0:00:10]} 0-1

[Event "78th GEO-ch Women 1st League 2021"]
[Site "Tbilisi"]
[Date "2021.03.19"]
[Round "2.11"]
[White "Dolakidze, Mariam"]
[Black "Antia, Sopia"]
[Result "0-1"]
[ECO "D11"]
[WhiteElo "1416"]
[BlackElo "1594"]
[Annotator "NA"]
[PlyCount "88"]
[EventDate "2021.03.18"]
[EventType "swiss"]
[EventCountry "GEO"]
[SourceTitle "playchess.com"]
[Source "ChessBase"]
[SourceQuality "1"]
[TimeControl "5400+30"]

1. Nf3 {[%emt 0:00:00]} d5 {[%emt 0:00:00]} 2. g3 {[%emt 0:00:00]} Bf5 {[%emt 0:00:00]} 3. Bg2 {[%emt 0:00:00]} e6 {[%emt 0:00:00]} 4. c4 {[%emt 0:00:00]} c6 {[%emt 0:00:00]} 5. b3 {[%emt 0:00:17]} Nf6 {[%emt 0:02:02]} 6. d4 {[%emt 0:00:42]} Nbd7 {[%emt 0:02:22]} 7. O-O {[%emt 0:00:14]} h6 {[%emt 0:00:42]} 8. Bb2 {[%emt 0:01:12]} Be7 {[%emt 0:00:25]} 9. Nc3 {[%emt 0:00:38]} O-O {[%emt 0:00:24]} 10. Rc1 {[%emt 0:00:14]} Ne4 {[%emt 0:07:21]} 11. Nxe4 {[%emt 0:01:01]} Bxe4 {[%emt 0:00:09]} 12. Nd2 {[%emt 0:00:18]} Bxg2 {[%emt 0:05:33]} 13. Kxg2 {[%emt 0:00:08]} f5 {[%emt 0:03:12]} 14. Nf3 {[%emt 0:00:32]} a5 {[%emt 0:03:41]} 15. a3 {[%emt 0:01:00]} Bf6 {[%emt 0:01:47]} 16. Qd2 {[%emt 0:01:50]} Qb6 {[%emt 0:02:12]} 17. cxd5 {[%emt 0:00:47]} exd5 {[%emt 0:00:32]} 18. Qd3 {[%emt 0:00:12]} Rae8 {[%emt 0:07:12]} 19. e3 {[%emt 0:02:10]} g6 {[%emt 0:00:44]} 20. Rfd1 {[%emt 0:01:06]} Qd8 {[%emt 0:03:02]} 21. h4 {[%emt 0:00:41]} Bg7 {[%emt 0:03:27]} 22. Rh1 {[%emt 0:00:10]} Qe7 {[%emt 0:00:27]} 23. b4 {[%emt 0:01:20]} axb4 {[%emt 0:00:47]} 24. axb4 {[%emt 0:00:07]} Qe4 {[%emt 0:00:39]} 25. Rhd1 {[%emt 0:00:32]} Nb6 {[%emt 0:04:41]} 26. Qxe4 {[%emt 0:03:20]} fxe4 {[%emt 0:00:04]} 27. Nd2 {[%emt 0:00:02]} Rf7 {[%emt 0:01:23]} 28. Rf1 {[%emt 0:00:19]} Bf8 {[%emt 0:02:27]} 29. Ba3 {[%emt 0:01:16]} Ra8 {[%emt 0:00:47]} 30. Ra1 {[%emt 0:00:13]} Bd6 {[%emt 0:07:14]} 31. Rfc1 {[%emt 0:00:19]} Raf8 {[%emt 0:00:47]} 32. Rf1 {[%emt 0:00:15]} Na8 {[%emt 0:02:48]} 33. Nb1 {[%emt 0:02:07]} Nc7 {[%emt 0:01:52]} 34. Nc3 {[%emt 0:00:18]} b5 {[%emt 0:03:13]} 35. Nd1 {[%emt 0:04:10]} Na8 {[%emt 0:01:57]} 36. Rc1 {[%emt 0:00:25]} Rc7 {[%emt 0:00:44]} 37. Nb2 {[%emt 0:05:03]} Nb6 {[%emt 0:00:25]} 38. Rc3 {[%emt 0:00:44]} Kg7 {[%emt 0:03:42]} 39. Rfc1 {[%emt 0:01:30]} Nc4 {[%emt 0:02:00]} 40. Nxc4 {[%emt 0:00:06]} bxc4 {[%emt 0:00:03]} 41. Rb1 {[%emt 0:00:09]} Ra7 {[%emt 0:01:00]} 42. Bc1 {[%emt 0:03:29]} Ra2 {[%emt 0:00:27]} 43. Ra3 {[%emt 0:01:12]} Rfxf2+ {[%emt 0:02:35]} 44. Kg1 {[%emt 0:00:13]} Rg2+ {[%emt 0:00:53]} 0-1

[Event "78th GEO-ch Women 1st League 2021"]
[Site "Tbilisi"]
[Date "2021.03.20"]
[Round "3.1"]
[White "Nikoladze, Sopio"]
[Black "Vakhania, Alexandra"]
[Result "0-1"]
[ECO "D04"]
[WhiteElo "2132"]
[BlackElo "2134"]
[Annotator "NA"]
[PlyCount "62"]
[EventDate "2021.03.18"]
[EventType "swiss"]
[EventCountry "GEO"]
[SourceTitle "playchess.com"]
[Source "ChessBase"]
[SourceQuality "1"]
[TimeControl "5400+30"]

1. d4 {[%emt 1:30:30]} Nf6 {[%emt 0:02:05]} 2. Nf3 {[%emt 0:00:00]} d5 {[%emt 0:00:08]} 3. e3 {[%emt 0:00:00]} c5 {[%emt 0:00:17]} 4. b3 {[%emt 0:00:00]} Nc6 {[%emt 0:00:28]} 5. Bd3 {[%emt 0:00:00]} Bg4 {[%emt 0:00:12]} 6. Bb2 {[%emt 0:00:00]} e6 {[%emt 0:01:29]} 7. Nbd2 {[%emt 0:00:00]} cxd4 {[%emt 0:00:36]} 8. exd4 {[%emt 0:00:00]} Bd6 {[%emt 0:00:59]} 9. O-O {[%emt 0:00:00]} O-O {[%emt 0:00:23]} 10. a3 {[%emt 0:00:00]} e5 {[%emt 0:08:47]} 11. dxe5 {[%emt 0:00:00]} Bxe5 {[%emt 0:00:08]} 12. Qb1 {[%emt 0:00:00]} Bf4 {[%emt 0:04:44]} 13. h3 {[%emt 0:00:00]} Bh5 {[%emt 0:00:34]} 14. g3 {[%emt 0:00:00]} Bc7 {[%emt 0:00:30]} 15. b4 {[%emt 0:00:00]} Re8 {[%emt 0:03:54]} 16. b5 {[%emt 0:00:00]} Na5 {[%emt 0:06:38]} 17. g4 {[%emt 0:00:00]} Bg6 {[%emt 0:01:44]} 18. Bd4 {[%emt 0:00:00]} Nc4 {[%emt 0:02:58]} 19. Nxc4 {[%emt 0:00:00]} dxc4 {[%emt 0:00:21]} 20. Bxg6 {[%emt 0:00:00]} hxg6 {[%emt 0:00:09]} 21. Qb2 {[%emt 0:00:00]} Qd5 {[%emt 0:00:46]} 22. Nh2 {[%emt 0:00:00]} Bxh2+ {[%emt 0:03:35]} 23. Kxh2 {[%emt 0:00:00]} Nxg4+ {[%emt 0:00:08]} 24. hxg4 {[%emt 0:00:00]} Re4 {[%emt 0:00:12]} 25. f3 {[%emt 0:00:00]} Rxd4 {[%emt 0:00:10]} 26. Rf2 {[%emt 0:00:00]} Qe5+ {[%emt 0:01:09]} 27. Kh3 {[%emt 0:00:00]} f5 {[%emt 0:00:34]} 28. Re1 {[%emt 0:00:00]} Qf4 {[%emt 0:02:18]} 29. Rg1 {[%emt 0:00:00]} Kf7 {[%emt 0:00:45]} 30. Rg3 {[%emt 0:00:00]} Rh8+ {[%emt 0:02:11]} 31. Kg2 {[%emt 0:00:00]} Qh6 {[%emt 0:00:21]} 0-1

[Event "78th GEO-ch Women 1st League 2021"]
[Site "Tbilisi"]
[Date "2021.03.20"]
[Round "3.2"]
[White "Gvetadze, Sofio"]
[Black "Lomaia, Diana"]
[Result "1/2-1/2"]
[ECO "A34"]
[WhiteElo "2317"]
[BlackElo "1946"]
[Annotator "NA"]
[PlyCount "63"]
[EventDate "2021.03.18"]
[EventType "swiss"]
[EventCountry "GEO"]
[SourceTitle "playchess.com"]
[Source "ChessBase"]
[SourceQuality "1"]
[TimeControl "5400+30"]

1. e4 {[%emt 0:00:00]} c5 {[%emt 0:00:00]} 2. Nf3 {[%emt 0:00:00]} e6 {[%emt 0:00:00]} 3. c4 {[%emt 0:00:00]} Nc6 {[%emt 0:00:07]} 4. Nc3 {[%emt 0:00:00]} Nf6 {[%emt 0:00:28]} 5. Be2 {[%emt 0:00:00]} d5 {[%emt 0:00:39]} 6. exd5 {[%emt 0:00:14]} exd5 {[%emt 0:00:09]} 7. d4 {[%emt 0:00:08]} Be6 {[%emt 0:00:40]} 8. cxd5 {[%emt 0:00:46]} Nxd5 {[%emt 0:00:51]} 9. O-O {[%emt 0:00:14]} Be7 {[%emt 0:03:28]} 10. Ne4 {[%emt 0:03:42]} cxd4 {[%emt 0:04:13]} 11. Nxd4 {[%emt 0:00:13]} Nxd4 {[%emt 0:01:54]} 12. Qxd4 {[%emt 0:00:08]} O-O {[%emt 0:00:43]} 13. Nc5 {[%emt 0:04:47]} Bxc5 {[%emt 0:07:52]} 14. Qxc5 {[%emt 0:00:21]} Qf6 {[%emt 0:01:55]} 15. a3 {[%emt 0:08:17]} Rfd8 {[%emt 0:03:02]} 16. Bf3 {[%emt 0:02:17]} b6 {[%emt 0:01:56]} 17. Qb5 {[%emt 0:01:51]} Rac8 {[%emt 0:04:43]} 18. Re1 {[%emt 0:01:55]} h6 {[%emt 0:02:16]} 19. Qa4 {[%emt 0:09:05]} Rc7 {[%emt 0:05:00]} 20. Bxd5 {[%emt 0:02:23]} Rxd5 {[%emt 0:02:22]} 21. Qf4 {[%emt 0:01:47]} Qxf4 {[%emt 0:05:20]} 22. Bxf4 {[%emt 0:00:04]} Rc2 {[%emt 0:00:22]} 23. b4 {[%emt 0:00:17]} a5 {[%emt 0:05:15]} 24. bxa5 {[%emt 0:00:43]} bxa5 {[%emt 0:12:24]} 25. h3 {[%emt 0:00:08]} Rd3 {[%emt 0:01:57]} 26. Re3 {[%emt 0:00:42]} Rxe3 {[%emt 0:00:34]} 27. Bxe3 {[%emt 0:00:04]} a4 {[%emt 0:00:10]} 28. Rc1 {[%emt 0:00:07]} Rxc1+ {[%emt 0:00:13]} 29. Bxc1 {[%emt 0:00:04]} Kf8 {[%emt 0:00:17]} 30. Bb2 {[%emt 0:00:06]} g6 {[%emt 0:00:26]} 31. Bc3 {[%emt 0:00:05]} Ke7 {[%emt 0:00:11]} 32. Bb4+ {[%emt 0:00:03]} 1/2-1/2